Cogmind - Beta 13 @@@ ROGUE MODE // 2024.04.15 @ 03:13:18 Player: ToasterKoishi Result: Destroyed by G-34 Mercenary with Small Laser Performance ------------- Evolutions (1) 500 Regions Visited (2) 400 Robots Destroyed (0) 0 Value Destroyed (0) 0 Prototype IDs (0) 0 Alien Tech Used (0) 0 Bonus (200) 200 TOTAL SCORE: 1100 Bonus ------- Pacifist 200 Cogmind --------- Core Integrity 0/400 Matter 218/300 Energy 99/100 System Corruption 7% Temperature Cool (6) Movement Core (50) Location -9/Materials Parts ------- > --- POWER (1) -------- (None) > --- PROPULSION (2) --- (None) > --- UTILITY (4) ------ (None) > --- WEAPON (2) ------- (None) > --- INVENTORY (5) ---- (None) Peak State ------------ > --- POWER ------------ (None) > --- PROPULSION ------- (None) > --- UTILITY ---------- Improved Sensor Array Melee Analysis Suite > --- WEAPON ----------- Mining Claw > --- INVENTORY -------- (None) [Rating: 7] Favorites ----------- Power None Propulsion None Utility Improved Sensor Array Device Improved Sensor Array Processor Melee Analysis Suite Weapon Mining Claw Ballistic Cannon Flak Cannon Slashing Weapon Mining Claw Build | -11 -10 -9 ------- Run | Yrd Mat Mat Slots Evolved 2 | . . 2 Power . | . . . Propulsion . | . . . Utility 2 | . . 2 Weapon . | . . . Parts Attached 5 | . 2 3 Power . | . . . Engine . | . . . Core . | . . . Reactor . | . . . Propulsion . | . . . Treads . | . . . Leg . | . . . Wheel . | . . . Hover . | . . . Flight . | . . . Utility 3 | . 1 2 Device 2 | . 1 1 Storage . | . . . Processor 1 | . . 1 Hackware . | . . . Protection . | . . . Artifact . | . . . Weapon 2 | . 1 1 Energy Gun . | . . . Energy Cannon . | . . . Ballistic Gun . | . . . Ballistic Cannon 1 | . . 1 Launcher . | . . . Special Weapon . | . . . Impact Weapon . | . . . Slashing Weapon 1 | . 1 . Piercing Weapon . | . . . Special Melee Weapon . | . . . Unidentified Prototypes . | . . . Parts Lost 3 | . . 3 Power . | . . . Propulsion . | . . . Utility 2 | . . 2 Weapon 1 | . . 1 Highest Loss Streak 3 | . . 3 To Critical Strikes . | . . . Average Slot Usage (%) 12 | . 11 12 Device 3 | . . 5 Processor 1 | . . 2 Slashing Weapon 6 | . 11 5 Naked Turns 102 | . 17 85 Heaviest Build 3 | . 3 3 Greatest Support 3 | 3 3 3 Greatest Overweight (x) . | . . . Average Overweight (x) . | . . . Largest Inventory Capacity 5 | 5 5 5 Average Capacity 5 | 5 5 5 Most Carried . | . . . Average Carried . | . . . Final Capacity 5 | 5 5 5 Final Carried . | . . . Class Distribution -------------------- 100% | Mutant Dominant Class ---------------- Mutant | -10/Materials Mutant | -9/Materials Resources | -11 -10 -9 ----------- Run | Yrd Mat Mat Matter Collected 42 | 42 . . Remotely . | . . . Salvage Created . | . . . Parts . | . . . Haulers Intercepted . | . . . Recyclers Shooed . | . . . Parts Field Recycled . | . . . Retrieved Matter . | . . . Parts Self-Destructed . | . . . Prevented . | . . . Kills | -11 -10 -9 ------- Run | Yrd Mat Mat Combat Hostiles Destroyed . | . . . Classes Destroyed . | . . . Best Kill Streak . | . . . Combat Bots Only . | . . . Max Kills in Single Turn . | . . . Gunslinging . | . . . Exploded . | . . . Melee . | . . . Uniques/NPCs Destroyed . | . . . Combat | -11 -10 -9 -------- Run | Yrd Mat Mat Hostile Shots Fired 85 | . 17 68 Missed 41 | . 9 32 Damage Taken 548 | . 61 487 Core 460 | . 51 409 Absorbed by Shields . | . . . Core Remaining (%) 89 | 100 79 . Volleys Fired 1 | . . 1 Largest 1 | . . 1 Hottest 44 | . . 44 Shots Fired 1 | . . 1 Gun . | . . . Cannon 1 | . . 1 Launcher . | . . . Special . | . . . Kinetic 1 | . . 1 Thermal . | . . . Explosive . | . . . Electromagnetic . | . . . Robot Hit Streak . | . . . Robot Miss Streak . | . . . Penetration Max . | . . . Secondary Targets . | . . . Shots Hit Robots 2 | . 1 1 Core Hits 2 | . . 2 Critical Kills . | . . . Critical Parts Destroyed . | . . . Critical Strikes . | . . . Melee Attacks 2 | . 1 1 Impact . | . . . Slashing 2 | . 1 1 Piercing . | . . . Sneak Attacks . | . . . Combat Hostiles . | . . . Follow-up Attacks . | . . . Damage Inflicted 132 | 1 33 98 Guns . | . . . Cannons . | . . . Explosions . | . . . Melee 53 | . 33 20 Ramming 79 | 1 . 78 Kinetic . | . . . Thermal . | . . . Explosive . | . . . Electromagnetic . | . . . Impact . | . . . Slashing 53 | . 33 20 Piercing . | . . . Highest Corruption 7 | . . 7 Average Corruption 6 | . . 6 Corruption Purged . | . . . Corruption Blocked . | . . . Effects 1 | . . 1 Matter Fused 1 | . . 1 Overload Shots . | . . . Overflow Damage 3 | . 3 . Projectiles . | . . . Explosions . | . . . Melee 3 | . 3 . Knockbacks . | . . . Impact . | . . . Kinetic . | . . . Secondary . | . . . Self-Inflicted Damage 32 | . . 32 Shots . | . . . Rammed 30 | 1 . 29 Targets Rammed 30 | 1 . 29 Kicked . | . . . Crushed . | . . . Highest Temperature . | . . . Average Temperature . | . . . Received Heat Transfer 195 | . . 195 Siege Activations . | . . . Robots Corrupted . | . . . Combat Hostiles . | . . . Parts Fried . | . . . Impact Corruptions . | . . . Robots Melted . | . . . Combat Hostiles . | . . . Parts Melted . | . . . Heat Transferred . | . . . Parts Sabotaged . | . . . Parts Stolen . | . . . Parts Stripped . | . . . Power Chain Reactions . | . . . Alert | -11 -10 -9 ------- Run | Yrd Mat Mat Peak Influence 216 | . 30 216 Initial 12 | . . 12 Average 66 | . 12 89 Maximum Alert Level 1 | . . 1 Low Security (%) 90 | 100 100 86 Level 1 9 | . . 13 Level 2 . | . . . Level 3 . | . . . Level 4 . | . . . Level 5 . | . . . High Security . | . . . Max Security . | . . . Squads Dispatched 3 | . 1 2 Investigation 1 | . . 1 Extermination . | . . . Reinforcement 2 | . 1 1 Assault . | . . . Garrison . | . . . Intercept . | . . . Searches Triggered . | . . . Construction Impeded . | . . . Haulers Reinforced . | . . . Active Scanning Responses . | . . . Cargo Convoy Interrupts . | . . . Stealth | -11 -10 -9 --------- Run | Yrd Mat Mat Distress Signals . | . . . Communications Jammed . | . . . Distress Signals . | . . . Times Spotted 27 | . 5 22 Peak Tracking Total 13 | . 5 13 Tactical Retreats 2 | . . 2 Traps | -11 -10 -9 ------- Run | Yrd Mat Mat Traps Triggered 1 | . . 1 Indirectly . | . . . Trap Hack Attempts . | . . . Triggered . | . . . Disarmed . | . . . Reprogrammed . | . . . Reused . | . . . Traps Extracted . | . . . Installed . | . . . Triggered . | . . . Machines | -11 -10 -9 ---------- Run | Yrd Mat Mat Machines Disabled . | . . . Max in Single Turn . | . . . Machines Repaired . | . . . Machines Dismantled . | . . . Machines Sabotaged . | . . . Overloaded Fab Kills . | . . . Hacking | -11 -10 -9 --------- Run | Yrd Mat Mat Machines Accessed 2 | . . 2 Terminals 2 | . . 2 Fabricators . | . . . Repair Stations . | . . . Recycling Units . | . . . Scanalyzers . | . . . Garrison Access . | . . . Total Hacks 5 | . . 5 Successful 1 | . . 1 Failed 4 | . . 4 Catastrophic 2 | . . 2 Database Lockouts . | . . . Manual 5 | . . 5 Terminals 5 | . . 5 Fabricators . | . . . Repair Stations . | . . . Recycling Units . | . . . Scanalyzers . | . . . Garrison Access . | . . . Terminal Hacks 1 | . . 1 Level Access Points 1 | . . 1 Fabricator Hacks . | . . . Repair Station Hacks . | . . . Recycling Unit Hacks . | . . . Scanalyzer . | . . . Garrison Access Hacks . | . . . Unauthorized Hacks . | . . . Terminals . | . . . Fabricators . | . . . Repair Stations . | . . . Recycling Units . | . . . Scanalyzers . | . . . Garrison Access . | . . . Data Cores Recovered . | . . . Used . | . . . Hacking Detections 2 | . . 2 Full Trace Events 1 | . . 1 Feedback Events . | . . . Feedback Blocked . | . . . Robot Schematics Acquired . | . . . Robots Built . | . . . Authchips . | . . . Time . | . . . Total Robot Build Rating . | . . . Part Schematics Acquired . | . . . Parts Built . | . . . Authchips . | . . . Time . | . . . Total Part Build Rating . | . . . Parts Repaired . | . . . Time . | . . . Parts Recycled . | . . . Recycled Matter . | . . . Retrieved Matter . | . . . Retrieved Components . | . . . Parts Scanalyzed . | . . . Part Schematics Acquired . | . . . Parts Damaged . | . . . Bothacking | -11 -10 -9 ------------ Run | Yrd Mat Mat Used RIF Installer . | . . . Robots Hacked . | . . . Non-combat . | . . . Combat . | . . . Robot Hacks Applied . | . . . Relay Couplers Released . | . . . Fabnet Peak Effective % . | . . . Robots Rewired . | . . . Allies Hacked . | . . . Hacks Repelled . | . . . Allies | -11 -10 -9 -------- Run | Yrd Mat Mat Total Allies . | . . . Largest Group . | . . . Highest-Rated Group . | . . . Highest-Rated Ally . | . . . Total Orders . | . . . Ally Attacks . | . . . Total Damage . | . . . Kills . | . . . Allies Corrupted . | . . . Allies Melted . | . . . Intel | -11 -10 -9 ------- Run | Yrd Mat Mat Robot Analysis Total . | . . . Derelict Logs Recovered . | . . . Drone Launches . | . . . Drone Recoveries . | . . . Exploration | -11 -10 -9 ------------- Run | Yrd Mat Mat Turns Passed 218 | 9 56 153 Spaces Moved 342 | 17 99 226 Core 342 | 17 99 226 Treads . | . . . Legs . | . . . Wheels . | . . . Hover . | . . . Flight . | . . . Fastest Speed 50 | 50 50 50 Average Speed 50 | 50 50 50 Slowest Speed 50 | 50 50 50 Overloaded Moves . | . . . Propulsion Burnouts . | . . . Robots Hopped . | . . . Cave-ins Triggered . | . . . Exploration Rate (%) 22 | 3 28 37 Regions Visited 2 Branch Regions . Pre-discovered Areas . | . . . Known Exits Taken . | . . . Unknown Exits Taken 2 | 1 1 . Scrap Searched . | . . . Spaces Dug . | . . . Terrain Destroyed . | . . . Melee . | . . . Projectile . | . . . AOE . | . . . Terrain Rammed . | . . . Walls Destroyed . | . . . Machines Disabled . | . . . Actions | -11 -10 -9 --------- Run | Yrd Mat Mat Total 380 | 17 101 262 Wait . | . . . Move 340 | 16 98 226 Hop . | . . . Pick Up . | . . . Fast Attach 5 | . 2 3 Attach . | . . . Detach . | . . . Swap . | . . . Drop 2 | . . 2 Fire 1 | . . 1 Melee 2 | . 1 1 Ram 30 | 1 . 29 Kick . | . . . Crush . | . . . Escape Stasis . | . . . Rewire . | . . . Trap . | . . . Miscellaneous . | . . . Route ------- -11/Scrapyard -10/Materials -9/Materials (discovered 3 exits: Mat x3) History --------- Turn | Location | Event 2 | -11/Scrapyard | Met Revision 17 5 | -11/Scrapyard | Discovered new exit (range 12) 10 | -11/Scrapyard | Entered Materials 57 | -10/Materials | Discovered new exit (range 10) 66 | -10/Materials | Entered another Materials area 66 | -9/Materials | Evolved 2 slots: Utility x2 162 | -9/Materials | Lost 3 parts (2u1w) 167 | -9/Materials | Core integrity fell below 50% 188 | -9/Materials | Core integrity fell below 20% 208 | -9/Materials | Identified exit to Materials 219 | -9/Materials | Destroyed by G-34 Mercenary with Small Laser Last Messages --------------- 00167_ Slammed into G-34 Mercenary. 00171_ System corrupted: Matter fused (-6). 00171_ Slammed into G-34 Mercenary. 00175_ Destabilizing: Core damaged (-16). 00176_ Slammed into G-34 Mercenary. 00180_ Destabilizing: System corrupted (+1). 00181_ Slammed into G-34 Mercenary. 00185_ Slammed into B-36 Bruiser. 00188_ Slammed into G-34 Mercenary. 00199_ O-16 Technician: "IFF HANDSHAKE FAILED. SECURING TERMINAL." 00206_ ALERT: Hostiles spotted, dispatching reinforcements to Terminal M008. 00208_ Connecting with Terminal... >>Access(Main) Found 3 level access points to Materials: (20,8) (89,16) (81,85) Map updated. 00216_ Triggered Blade Trap. 00216_ Massive razor-sharp blades shoot up from within the floor. Map ----- +----------------------------------------------------+ | ???? #???????????????????????????????????????????? | | #### #???????????????????????????????????????????? | | #???????????????????????????????????????????? | | #???????????????????????????????????????????? | | ? +??????? ?????????????????????????????????? | | ? #?????? #????????????????????????????????? | | ?# #?????? #????????????????????????????????? | | ?# ####### #????????????????????????????????? | | ## #????????????????????????????????? | | #????????????????????????????????? | | ## #????????????????????????????????? | | # """ """ #????????????????????????????????? | | # """ """ #????????????????????????????????? | | + """ """ #????????????????????????????????? | | # ##??????###??????????????????????? | | # +????? #??????????????????????? | | # ##???"" #??????????????????????? | | # ## """"" #??????????????????????? | | ######"T"## ## """"" #??????????????????????? | | ##????###### ## """"" #??????????????????????? | | ???????????# ## """ #??????????????????????? | | ???????????+ ## #??????????????????????? | | ???????????# #? #??????????????????????? | | ???????????# #??? ????????????????????????? | | ???????????# ######+#######???????????????????? | | ???????????# u @ #???????????????????? | | ???????????# #???????????????????? | | ???????????# g #???????????????????? | | ???????????###############g +???????????????????? | | ?????????????????????????? o #???????????????????? | | ?????????????????????????? #???????????????????? | | ?????????????????????????? #???????????????????? | | ?????????????????????????? ???????????????????? | | ??????????????????????????